bitfinex/quotes_SOLUSD_20241107
["timestamp","ask_amount","ask_price","bid_price","bid_amount"]
[1730961534405,7.97936814,187.04,186.96,17.5359]
[1730961534590,7.97936814,187.04,186.98,7.97936814]
[1730961535412,7.97936814,187.05,186.98,7.97936814]
[1730961535591,7.97936814,187.07,187.0,7.97936814]
[1730961536509,7.97936814,187.08,187.02,7.97936814]
[1730961537104,7.97936814,187.08,186.98,20.0]
[1730961537299,7.97936814,187.07,187.01,7.97936814]
[1730961539192,15.5857,187.11,187.03,7.97936814]
[1730961539501,7.97936814,187.11,187.05,7.97936814]
[1730961539809,19.65428667,187.13,187.07,7.97936814]
[1730961540023,11.67491853,187.13,187.07,7.97936814]
[1730961540192,19.65428667,187.13,187.07,7.97936814]
[1730961540517,11.67491853,187.13,187.07,7.97936814]
[1730961541103,19.65428667,187.13,187.07,7.97936814]
[1730961542806,7.97936814,187.1,186.99,0.22549]
[1730961542991,7.97936814,187.1,187.04,7.97936814]
[1730961543208,7.97936814,187.11,187.05,7.97936814]
[1730961544199,7.97936814,187.09,186.95,6.3579]
[1730961544387,7.97936814,187.05,186.95,6.2579]
[1730961544705,7.97936814,187.04,186.98,7.97936814]
[1730961544913,7.97936814,187.04,186.95,6.2579]
[1730961545097,7.97936814,187.04,186.98,7.97936814]
[1730961545501,7.97936814,187.04,186.95,6.2579]
[1730961545701,7.97936814,187.04,186.98,7.97936814]
[1730961545902,7.97936814,187.05,186.99,7.97936814]
[1730961547414,7.97936814,187.05,186.99,12.4735952]
[1730961547415,12.4735952,187.05,186.99,12.4735952]
[1730961548611,12.4735952,187.05,186.97,23.776884]
[1730961548920,12.4735952,187.05,186.99,12.4735952]
[1730961550793,12.4735952,187.06,187.0,12.4735952]
[1730961551323,12.4735952,187.07,187.01,12.4735952]
[1730961552021,12.4735952,187.06,187.0,12.4735952]
[1730961553904,12.4735952,187.04,186.98,12.4735952]
[1730961555817,12.4735952,186.99,186.96,1.1]
[1730961556130,12.4735952,186.97,186.96,1.1]
[1730961561900,12.5990852,186.97,186.96,1.1]
[1730961562426,74.75949902,186.97,186.96,1.1]
[1730961563234,69.41109902,186.97,186.96,1.1]
[1730961565307,74.75949902,186.97,186.96,1.1]
[1730961566738,76.09909346,186.97,186.96,1.1]
[1730961566936,74.75949902,186.97,186.96,1.1]
[1730961567422,70.28040989,186.97,186.96,1.1]
[1730961570626,20.12549,186.94,186.82,2.14001102]
[1730961570932,7.99450607,186.87,186.82,2.14001102]
[1730961571237,7.99450607,186.86,186.82,2.14001102]
[1730961571408,8.11999607,186.84,186.82,2.14001102]
[1730961571613,20.12549,186.82,186.76,0.5771875]
[1730961571829,7.99450607,186.8,186.76,0.5771875]
[1730961572033,0.12549,186.8,186.76,0.5771875]
[1730961572820,23.776884,186.86,186.77,7.99450607]
[1730961573015,27.99450607,186.85,186.78,7.99450607]
[1730961573348,20.0,186.83,186.77,12.50391802]
[1730961573917,12.50391802,186.81,186.76,0.5771875]
[1730961574347,12.62940802,186.8,186.76,0.5771875]
[1730961575421,12.62940802,186.77,186.76,0.5771875]
[1730961575825,0.12549,186.77,186.76,0.5771875]
[1730961576636,20.0,186.78,186.76,0.5771875]
[1730961576841,31.62940802,186.78,186.76,0.5771875]
[1730961577423,19.12549,186.78,186.76,0.5771875]
[1730961577916,31.62940802,186.78,186.76,0.5771875]
[1730961578321,12.50391802,186.79,186.76,0.5771875]
[1730961579323,12.62940802,186.77,186.76,0.5771875]
[1730961580026,0.12549,186.77,186.76,0.5771875]
[1730961581332,20.0,186.79,186.76,0.5771875]
[1730961581537,32.50391802,186.79,186.76,0.5771875]
[1730961581827,0.12549,186.79,186.76,0.5771875]
[1730961583751,12.50391802,186.81,186.76,0.5771875]
[1730961584044,12.50391802,186.79,186.76,0.5771875]
[1730961584236,12.50391802,186.8,186.76,0.5771875]
[1730961584644,0.12549,186.79,186.76,0.5771875]
[1730961585023,12.50391802,186.79,186.76,0.5771875]
[1730961585325,12.50391802,186.78,186.76,0.5771875]
[1730961585623,12.50391802,186.77,186.76,0.5771875]
[1730961586142,12.50391802,186.78,186.76,0.5771875]
[1730961586439,12.50391802,186.79,186.76,0.5771875]
[1730961587047,12.50391802,186.78,186.76,0.5771875]
[1730961589347,12.50391802,186.79,186.76,0.5771875]
[1730961593448,8.005778,186.79,186.76,0.5771875]
[1730961596153,8.005778,186.78,186.76,0.5771875]
[1730961596360,8.005778,186.77,186.76,0.5771875]
[1730961598856,8.005778,186.78,186.76,0.5771875]
[1730961600254,8.131268,186.77,186.76,0.5771875]
[1730961600450,0.12549,186.77,186.76,0.5771875]
[1730961600639,23.902374,186.78,186.76,0.5771875]
[1730961601730,20.0,186.79,186.76,0.5771875]
[1730961602342,28.005778,186.79,186.76,0.5771875]
[1730961603259,8.005778,186.77,186.76,0.5771875]
[1730961603458,20.2,186.76,186.59,21.8338]
[1730961603640,8.005778,186.72,186.66,8.005778]
[1730961603966,8.005778,186.72,186.59,21.8338]
[1730961603967,0.12549,186.71,186.67,8.005778]
[1730961604162,28.005778,186.74,186.68,8.005778]
[1730961604341,23.776884,186.73,186.68,8.005778]
[1730961604542,20.0,186.73,186.69,8.005778]
[1730961604848,31.782662,186.75,186.68,8.005778]
[1730961605041,20.0,186.75,186.7,8.005778]
[1730961605255,8.005778,186.76,186.7,8.005778]
[1730961605256,28.005778,186.76,186.7,8.005778]
[1730961605552,8.005778,186.77,186.71,8.005778]
[1730961605749,8.005778,186.77,186.62,0.1]
[1730961605945,8.005778,186.73,186.67,8.005778]
[1730961606164,0.12549,186.72,186.67,8.005778]
[1730961606742,8.005778,186.73,186.66,8.005778]
[1730961606955,8.005778,186.73,186.67,8.005778]
[1730961607143,20.0,186.73,186.68,8.005778]
[1730961607638,29.31150009,186.75,186.6,32.023112]
[1730961607941,20.0,186.74,186.69,8.005778]
[1730961608160,8.005778,186.76,186.69,8.005778]
[1730961608537,8.005778,186.76,186.67,15.0761]
[1730961608739,8.005778,186.77,186.7,8.005778]
[1730961608950,8.005778,186.76,186.7,8.005778]
[1730961609647,8.005778,186.76,186.69,8.005778]
[1730961610152,8.005778,186.75,186.69,8.005778]
[1730961610751,23.776884,186.77,186.69,8.005778]
[1730961610953,8.005778,186.75,186.69,8.005778]
[1730961611460,8.005778,186.74,186.68,8.005778]
[1730961611843,8.005778,186.75,186.68,8.005778]
[1730961612360,8.005778,186.73,186.67,23.081878]
[1730961612657,5.47989,186.76,186.66,8.005778]
[1730961612658,8.005778,186.72,186.66,8.005778]
[1730961613254,5.57989,186.76,186.66,8.005778]
[1730961613255,8.005778,186.73,186.66,8.005778]
[1730961614467,8.005778,186.73,186.67,8.005778]
[1730961614651,8.005778,186.73,186.66,8.005778]
[1730961615155,8.005778,186.73,186.67,8.005778]
[1730961616659,8.005778,186.73,186.66,8.005778]
[1730961616890,8.005778,186.72,186.66,8.005778]
[1730961617164,8.005778,186.72,186.65,8.005778]
[1730961617361,8.005778,186.72,186.66,8.005778]
[1730961618547,8.005778,186.71,186.65,8.005778]
[1730961619250,8.005778,186.68,186.58,0.5771875]
[1730961619458,8.005778,186.68,186.62,8.005778]
[1730961619659,8.005778,186.69,186.58,0.5771875]
[1730961619967,8.005778,186.68,186.62,8.005778]
[1730961620153,8.005778,186.69,186.63,8.005778]
[1730961621247,23.361378,186.7,186.64,8.005778]
[1730961621443,0.12549,186.71,186.58,0.5771875]
[1730961621765,8.005778,186.69,186.63,8.005778]
[1730961621950,8.005778,186.7,186.64,8.005778]
[1730961622351,0.12549,186.7,186.65,8.005778]
[1730961622551,23.902374,186.7,186.65,8.005778]
[1730961622769,31.908152,186.7,186.64,8.005778]
[1730961624247,8.005778,186.67,186.58,0.5771875]
[1730961624470,8.005778,186.67,186.61,8.005778]
[1730961624768,8.005778,186.68,186.62,8.005778]
[1730961625280,8.005778,186.69,186.63,8.005778]
[1730961625850,8.005778,186.68,186.62,8.005778]
[1730961626164,8.005778,186.69,186.63,8.005778]
[1730961627359,31.908152,186.7,186.64,8.005778]
[1730961627670,8.005778,186.69,186.63,8.005778]
[1730961627848,31.908152,186.7,186.64,8.005778]
[1730961628245,8.005778,186.69,186.58,2.71974727]
[1730961628440,8.005778,186.69,186.63,8.005778]
[1730961628646,8.005778,186.69,186.58,0.5771875]
[1730961628875,8.005778,186.69,186.63,8.005778]
[1730961629245,31.408152,186.7,186.64,8.005778]
[1730961634179,8.005778,186.67,186.61,8.005778]
[1730961634381,29.86310382,186.7,186.62,8.005778]
[1730961634382,8.005778,186.68,186.62,8.005778]
[1730961635554,8.005778,186.69,186.63,8.005778]
[1730961635969,29.86310382,186.7,186.64,8.005778]
[1730961636279,37.86888182,186.7,186.64,8.005778]
[1730961638758,8.005778,186.69,186.63,8.005778]
[1730961639873,29.86310382,186.7,186.65,8.005778]
[1730961640180,31.408152,186.7,186.61,2.14255163]
[1730961640378,31.408152,186.7,186.64,8.005778]
[1730961641269,23.402374,186.7,186.58,6.8287875]
[1730961641475,31.408152,186.7,186.64,8.005778]
[1730961642372,5.5361476,186.71,186.65,8.005778]
[1730961642676,13.5419256,186.71,186.65,8.005778]
[1730961643263,13.5419256,186.71,186.67,8.005778]
[1730961643264,5.5361476,186.71,186.67,8.005778]
[1730961643577,13.5419256,186.71,186.65,8.005778]
[1730961644261,8.005778,186.7,186.63,16.1505]
[1730961644488,8.005778,186.69,186.63,24.156278]
[1730961644968,5.5361476,186.71,186.63,24.156278]
[1730961644969,8.005778,186.7,186.64,8.005778]
[1730961646066,8.005778,186.7,186.63,16.1505]
[1730961646067,13.5419256,186.71,186.65,8.005778]
[1730961646390,5.5361476,186.71,186.66,8.005778]
[1730961646586,5.5361476,186.71,186.65,8.005778]
[1730961646982,5.5361476,186.71,186.69,8.005778]
[1730961648160,5.5361476,186.71,186.66,8.005778]
[1730961648363,13.5419256,186.71,186.65,8.005778]
[1730961649381,8.005778,186.7,186.64,8.005778]
[1730961650175,8.005778,186.69,186.63,16.1505]
[1730961650383,8.005778,186.69,186.63,24.156278]
[1730961651283,8.005778,186.69,186.63,16.1505]
[1730961651471,8.005778,186.68,186.58,6.8287875]
[1730961651667,8.005778,186.68,186.62,8.005778]
[1730961653210,8.005778,186.67,186.61,8.005778]
[1730961654281,8.005778,186.68,186.62,8.005778]
[1730961656997,8.005778,186.69,186.63,8.005778]
[1730961659006,8.005778,186.7,186.64,8.005778]
[1730961659791,13.5419256,186.71,186.65,8.005778]
[1730961659994,13.5419256,186.71,186.58,6.8287875]
[1730961660302,13.5419256,186.71,186.65,8.005778]
[1730961660499,5.5361476,186.71,186.66,8.005778]
[1730961660903,5.5361476,186.71,186.67,8.005778]
[1730961661584,8.005778,186.74,186.68,8.005778]
[1730961661776,8.005778,186.72,186.63,15.8004]
[1730961661978,8.005778,186.7,186.64,8.005778]
[1730961662497,8.005778,186.69,186.63,23.806178]
[1730961663211,20.0,186.69,186.64,8.005778]
[1730961664401,28.005778,186.69,186.62,8.005778]
[1730961665592,8.005778,186.68,186.62,8.005778]
[1730961666602,8.005778,186.66,186.58,23.0978875]
[1730961666811,8.005778,186.67,186.61,8.005778]
[1730961667108,8.005778,186.69,186.63,8.005778]
[1730961667587,23.776884,186.72,186.62,8.005778]
[1730961667786,20.0,186.71,186.62,8.005778]
[1730961667989,8.005778,186.68,186.62,8.005778]
[1730961668197,20.0,186.71,186.63,8.005778]
[1730961668392,23.776884,186.73,186.65,8.005778]
[1730961668595,20.0,186.7,186.65,8.005778]
[1730961668983,28.005778,186.7,186.64,8.005778]
[1730961669180,8.005778,186.69,186.63,8.005778]
[1730961669686,20.0,186.72,186.63,8.005778]
[1730961669888,8.005778,186.69,186.63,8.005778]
[1730961670088,8.005778,186.68,186.58,23.0978875]
[1730961670396,8.005778,186.69,186.62,8.005778]
[1730961670596,8.005778,186.69,186.63,8.005778]
[1730961671007,8.005778,186.7,186.63,8.005778]
[1730961672101,8.005778,186.69,186.63,8.005778]
[1730961672613,8.005778,186.7,186.63,8.005778]
[1730961673706,8.005778,186.7,186.64,8.005778]
[1730961673908,8.005778,186.7,186.63,8.005778]
[1730961676013,8.005778,186.69,186.63,8.005778]
[1730961676510,8.005778,186.69,186.62,8.005778]
[1730961677392,8.005778,186.7,186.63,8.005778]
[1730961678292,8.005778,186.66,186.58,23.0978875]
[1730961678506,8.005778,186.65,186.58,24.8520655]
[1730961678691,15.3524,186.69,186.58,24.8520655]
[1730961678692,8.005778,186.64,186.58,24.8520655]
[1730961679119,8.005778,186.64,186.58,8.5829655]
[1730961679416,8.005778,186.62,186.58,0.5771875]
[1730961679625,20.22549,186.65,186.58,0.5771875]
[1730961679916,8.005778,186.59,186.58,0.5771875]
[1730961680115,28.005778,186.59,186.58,0.5771875]
[1730961680319,34.232878,186.59,186.58,0.5771875]
[1730961680494,26.2271,186.59,186.58,0.5771875]
[1730961680693,34.232878,186.59,186.58,0.5771875]
[1730961681227,34.20673537,186.59,186.58,0.5771875]
[1730961681395,42.21251337,186.59,186.58,0.5771875]
[1730961681892,6.04782915,186.65,186.58,0.5771875]
[1730961682089,3.90664187,186.64,186.58,0.5771875]
[1730961682292,8.005778,186.63,186.58,0.5771875]
[1730961682713,13.58819367,186.63,186.58,0.5771875]
[1730961682913,8.005778,186.61,186.58,0.5771875]
[1730961683107,5.58241567,186.63,186.58,0.5771875]
[1730961683311,8.005778,186.63,186.58,0.5771875]
[1730961683621,6.04782915,186.65,186.58,0.5771875]
[1730961683622,8.005778,186.64,186.58,8.5829655]
[1730961683826,5.58197961,186.65,186.58,8.5829655]
[1730961683827,5.58197961,186.65,186.59,8.005778]
[1730961684197,5.58197961,186.65,186.61,8.005778]
[1730961684404,8.005778,186.68,186.62,8.005778]
[1730961684607,8.005778,186.67,186.61,8.005778]
[1730961684893,8.005778,186.67,186.58,0.5771875]
[1730961684894,45.26822483,186.7,186.59,15.8631]
[1730961685093,8.005778,186.67,186.6,8.005778]
[1730961685394,8.005778,186.66,186.59,15.8631]
[1730961685618,8.005778,186.65,186.59,15.8631]
[1730961685914,8.005778,186.63,186.58,0.5771875]
[1730961686116,8.005778,186.62,186.58,0.5771875]
[1730961686298,8.005778,186.61,186.58,0.5771875]
[1730961686695,8.005778,186.62,186.58,0.5771875]
[1730961687297,12.53050685,186.62,186.58,0.5771875]
[1730961688518,12.53050685,186.61,186.58,0.5771875]
[1730961688716,12.53050685,186.6,186.58,0.5771875]
[1730961691303,16.2851,186.61,186.58,0.5771875]
[1730961691513,12.53050685,186.61,186.58,0.5771875]
[1730961692246,12.53050685,186.59,186.58,0.5771875]
[1730961692527,12.53050685,186.61,186.58,0.5771875]
[1730961692711,12.53050685,186.59,186.58,0.5771875]
[1730961694126,12.53050685,186.6,186.58,0.5771875]
[1730961694323,19.48013056,186.61,186.58,0.5771875]
[1730961694507,12.53050685,186.6,186.58,0.5771875]
[1730961696110,5.58327531,186.61,186.58,0.5771875]
[1730961696111,12.53050685,186.59,186.58,0.5771875]
[1730961698237,12.53050685,186.6,186.58,0.5771875]
[1730961698611,5.58327531,186.61,186.58,13.10769435]
[1730961698817,12.53050685,186.65,186.59,12.53050685]
[1730961699133,16.2851,186.66,186.58,13.10769435]
[1730961699134,5.57953402,186.63,186.58,13.10769435]
[1730961699315,12.53050685,186.61,186.58,0.5771875]
[1730961699508,12.53050685,186.6,186.58,0.5771875]
[1730961699705,12.53050685,186.59,186.58,0.5771875]
[1730961705937,56.43288085,186.59,186.58,0.5771875]
[1730961707628,61.89218085,186.59,186.58,0.5771875]
[1730961707819,61.79218085,186.59,186.58,0.5771875]
[1730961708340,75.7102931,186.59,186.58,0.5771875]
[1730961708726,13.91811225,186.59,186.58,0.5771875]
[1730961708922,12.53050685,186.59,186.58,0.5771875]
[1730961709432,18.09994901,186.59,186.58,0.5771875]
[1730961712714,0.1,186.57,186.4,21.5322]
[1730961712912,12.53050685,186.52,186.46,12.53050685]
[1730961713132,12.53050685,186.52,186.4,34.06270685]
[1730961713133,12.53050685,186.52,186.42,2.14381096]
[1730961713323,12.53050685,186.52,186.46,12.53050685]
[1730961714129,19.13895278,186.56,186.49,12.53050685]
[1730961714318,12.53050685,186.56,186.49,12.53050685]
[1730961714513,20.0,186.58,186.5,12.53050685]
[1730961714822,12.53050685,186.56,186.49,12.53050685]
[1730961715051,12.53050685,186.52,186.42,15.2958]
[1730961715222,12.53050685,186.52,186.47,2.14400125]
[1730961715524,12.53050685,186.57,186.5,12.53050685]
[1730961715923,12.53050685,186.57,186.51,12.53050685]
[1730961717119,32.53050685,186.58,186.51,12.53050685]
[1730961717435,18.09994901,186.59,186.52,12.53050685]
[1730961719355,5.56944216,186.59,186.52,12.53050685]
[1730961719533,18.09994901,186.59,186.52,12.53050685]
[1730961720234,18.09994901,186.59,186.53,12.53050685]
[1730961720421,5.56944216,186.59,186.57,12.53050685]
[1730961720619,12.53050685,186.62,186.55,12.53050685]
[1730961720842,18.09753577,186.62,186.55,12.53050685]
[1730961721037,18.09753577,186.62,186.56,12.53050685]
[1730961721246,18.09753577,186.62,186.55,15.4237]
[1730961721247,5.56702892,186.62,186.55,15.4237]
[1730961721445,12.53050685,186.64,186.57,12.53050685]
[1730961721630,23.94865521,186.66,186.57,12.53050685]
[1730961721631,12.53050685,186.63,186.57,12.53050685]
[1730961721947,12.53050685,186.62,186.55,30.09807922]
[1730961722119,12.53050685,186.62,186.56,12.53050685]
[1730961722850,12.53050685,186.63,186.57,12.53050685]
[1730961723235,12.53050685,186.64,186.57,12.53050685]
[1730961723939,29.51602938,186.66,186.57,12.53050685]
[1730961723940,12.53050685,186.63,186.57,12.53050685]
[1730961725054,12.53050685,186.64,186.57,12.53050685]
[1730961725542,12.53050685,186.63,186.57,12.53050685]
[1730961726933,12.53050685,186.64,186.57,12.53050685]
[1730961727744,12.53050685,186.63,186.56,14.6736252]
[1730961727936,12.53050685,186.62,186.56,14.6736252]
[1730961728136,12.53050685,186.63,186.57,12.53050685]
[1730961728847,12.53050685,186.62,186.56,14.67359346]
[1730961729074,12.53050685,186.61,186.56,2.14308661]
[1730961729557,12.53050685,186.6,186.56,2.14308661]
[1730961729725,12.53050685,186.58,186.55,2.14308661]
[1730961729930,12.53050685,186.59,186.53,2.14308661]
[1730961730132,44.002374,186.65,186.54,2.14308661]
[1730961730133,12.53050685,186.58,186.54,2.14308661]
[1730961730431,12.53050685,186.55,186.53,2.14308661]
[1730961730630,12.53050685,186.55,186.39,0.6771875]
[1730961730631,0.12549,186.54,186.46,2.14308661]
[1730961730855,12.53050685,186.47,186.41,2.14308661]
[1730961731055,12.53050685,186.45,186.42,2.14308661]
[1730961731257,0.12549,186.49,186.43,2.14308661]
[1730961731437,43.902374,186.49,186.44,2.14308661]
[1730961731757,0.1,186.48,186.4,2.14308661]
[1730961731928,12.53050685,186.42,186.41,2.14308661]
[1730961732256,0.1,186.47,186.4,2.14308661]
[1730961732457,0.1,186.47,186.41,2.14308661]
[1730961732751,0.1,186.47,186.39,0.5771875]
[1730961732752,12.53050685,186.42,186.4,2.14308661]
[1730961732969,43.776884,186.46,186.41,2.14308661]
[1730961733126,43.776884,186.48,186.4,2.14308661]
[1730961733325,12.53050685,186.45,186.4,2.14308661]
[1730961733530,12.53050685,186.47,186.41,14.67359346]
[1730961733751,12.53050685,186.47,186.4,14.67359346]
[1730961733953,12.53050685,186.47,186.41,2.14308661]
[1730961734156,12.53050685,186.48,186.41,12.53050685]
[1730961734371,12.53050685,186.47,186.4,2.14308661]
[1730961734656,12.53050685,186.49,186.42,12.53050685]
[1730961734863,12.53050685,186.47,186.4,12.53050685]
[1730961735069,12.53050685,186.46,186.4,12.53050685]
[1730961735247,12.53050685,186.45,186.39,0.5771875]
[1730961735442,12.53050685,186.41,186.39,0.5771875]
[1730961735635,12.53050685,186.4,186.39,0.5771875]
[1730961736450,23.776884,186.42,186.39,0.5771875]
[1730961736634,36.30739085,186.42,186.39,0.5771875]
[1730961736837,12.53050685,186.4,186.39,0.5771875]
[1730961737145,12.53050685,186.42,186.39,0.5771875]
[1730961737329,20.0914493,186.42,186.39,0.5771875]
[1730961737532,20.0914493,186.43,186.39,0.5771875]
[1730961737935,6.0167,186.44,186.39,0.5771875]
[1730961738140,26.1081493,186.44,186.39,0.5771875]
[1730961738750,26.1081493,186.44,186.39,20.6686368]
[1730961738751,6.0167,186.44,186.39,20.6686368]
[1730961739254,43.8683333,186.47,186.41,20.0914493]
[1730961739446,43.8683333,186.47,186.4,20.0914493]
[1730961739636,0.12549,186.43,186.39,0.5771875]
[1730961739961,20.0914493,186.45,186.39,0.5771875]
[1730961739962,20.0914493,186.45,186.39,20.6686368]
[1730961740140,23.776884,186.45,186.39,20.6686368]
[1730961740346,20.0914493,186.44,186.39,0.5771875]
[1730961740545,43.8683333,186.45,186.39,20.6686368]
[1730961740737,43.8683333,186.45,186.39,0.5771875]
[1730961741056,20.2169393,186.43,186.39,0.5771875]
[1730961741359,23.776884,186.45,186.39,0.5771875]
[1730961741360,43.9938233,186.4,186.39,0.5771875]
[1730961742662,44.0938233,186.4,186.39,0.5771875]
[1730961742834,43.9938233,186.4,186.39,0.5771875]
[1730961744031,44.0938233,186.4,186.39,0.5771875]
[1730961744435,72.39736213,186.4,186.39,0.5771875]
[1730961745356,72.49736213,186.4,186.39,0.5771875]
[1730961745736,72.39736213,186.4,186.39,0.5771875]
[1730961745940,5.55663883,186.4,186.39,0.5771875]
[1730961746150,5.55663883,186.4,186.39,20.6686368]
[1730961746352,26.5338493,186.46,186.39,20.6686368]
[1730961746554,5.55875421,186.44,186.39,20.6686368]
[1730961746962,5.55875421,186.44,186.39,0.5771875]
[1730961747138,5.55875421,186.44,186.39,20.6686368]
[1730961747344,5.55875421,186.44,186.4,20.0914493]
[1730961747557,25.65020351,186.44,186.39,0.5771875]
[1730961747754,5.55875421,186.44,186.39,0.5771875]
[1730961747935,20.0914493,186.42,186.39,0.5771875]
[1730961748141,0.12549,186.43,186.39,0.5771875]
[1730961749062,5.55875421,186.44,186.39,0.5771875]
[1730961749246,5.55875421,186.44,186.39,20.6686368]
[1730961749758,5.55875421,186.44,186.4,20.0914493]
[1730961749959,0.12549,186.43,186.39,0.5771875]
[1730961750258,5.55875421,186.44,186.39,20.6686368]
[1730961750473,5.55875421,186.44,186.41,20.0914493]
[1730961750771,20.0914493,186.47,186.4,20.0914493]
[1730961750939,5.55475874,186.46,186.39,0.5771875]
[1730961751141,20.0914493,186.49,186.39,0.5771875]
[1730961751341,20.0914493,186.47,186.4,20.0914493]
[1730961751540,20.0914493,186.46,186.4,20.0914493]
[1730961751736,5.55372915,186.48,186.41,20.0914493]
[1730961751939,5.55372915,186.48,186.42,20.0914493]
[1730961752362,25.64517845,186.48,186.42,20.0914493]
[1730961752950,20.0914493,186.46,186.39,20.6686368]
[1730961753155,20.0914493,186.44,186.39,0.5771875]
[1730961753845,20.0914493,186.43,186.39,0.5771875]
[1730961755269,20.0914493,186.42,186.39,0.5771875]
[1730961755465,20.0914493,186.41,186.39,0.5771875]
[1730961755682,29.365374,186.47,186.39,0.5771875]
[1730961755683,20.0914493,186.4,186.39,0.5771875]
[1730961756043,20.0914493,186.41,186.39,0.5771875]
[1730961757480,20.0914493,186.4,186.39,0.5771875]
[1730961757767,63.9597826,186.4,186.39,0.5771875]
[1730961757964,43.8683333,186.4,186.39,0.5771875]
[1730961758374,43.9938233,186.4,186.39,0.5771875]
[1730961760755,23.776884,186.39,186.26,35.2914493]
[1730961760948,20.0,186.43,186.31,20.0914493]
[1730961761157,20.0914493,186.38,186.31,20.0914493]
[1730961761358,12.565056,186.37,186.26,15.2]
[1730961761745,12.565056,186.38,186.32,12.565056]
[1730961761954,12.565056,186.38,186.26,15.2]
[1730961761955,18.10180616,186.39,186.33,12.565056]
[1730961762151,5.53675016,186.39,186.33,12.565056]
[1730961762446,5.53675016,186.39,186.34,12.565056]
[1730961762753,18.10180616,186.39,186.32,12.565056]
[1730961763264,5.53675016,186.39,186.34,12.565056]
[1730961763469,20.09494805,186.41,186.34,20.09494805]
[1730961763860,20.09494805,186.4,186.34,20.09494805]
[1730961764172,20.09494805,186.4,186.33,20.09494805]
[1730961764348,20.09494805,186.41,186.34,20.09494805]
[1730961764550,5.54013281,186.43,186.34,20.09494805]
[1730961764769,5.54013281,186.43,186.38,20.09494805]
[1730961765079,20.09494805,186.44,186.37,20.09494805]
[1730961765257,20.09494805,186.43,186.36,26.50294805]
[1730961765969,20.09494805,186.42,186.36,26.50294805]
[1730961766473,20.09494805,186.42,186.36,6.408]
[1730961766657,20.09494805,186.41,186.34,20.09494805]
[1730961766856,20.09494805,186.4,186.34,20.09494805]
[1730961767085,20.09494805,186.4,186.31,6.6263]
[1730961767283,20.09494805,186.38,186.31,6.6263]
[1730961767466,20.09494805,186.39,186.32,20.09494805]
[1730961767971,20.09494805,186.39,186.33,20.09494805]
[1730961768171,20.09494805,186.39,186.31,6.6263]
[1730961768378,20.09494805,186.34,186.3,15.7244]
[1730961768673,20.09494805,186.33,186.27,20.09494805]
[1730961768857,20.09494805,186.34,186.26,30.8892]
[1730961769058,20.09494805,186.34,186.27,20.09494805]
[1730961769483,20.09494805,186.34,186.28,20.09494805]
[1730961769780,20.09494805,186.34,186.27,20.09494805]
[1730961770073,20.09494805,186.29,186.26,15.2]
[1730961770261,20.09494805,186.3,186.26,15.2]
[1730961770459,20.09494805,186.27,186.26,15.2]
[1730961771171,43.87183205,186.27,186.26,15.2]
[1730961771360,20.09494805,186.3,186.26,15.2]
[1730961771675,20.09494805,186.29,186.26,15.2]
[1730961771885,20.09494805,186.3,186.26,15.2]
[1730961772756,20.09494805,186.32,186.26,35.29494805]
[1730961772957,20.09494805,186.33,186.27,20.09494805]
[1730961773258,20.09494805,186.33,186.26,15.2]
[1730961773259,20.09494805,186.33,186.26,35.29494805]
[1730961773471,20.09494805,186.32,186.26,15.2]
[1730961773666,20.09494805,186.32,186.26,35.29494805]
[1730961773972,20.09494805,186.32,186.26,15.2]
[1730961774176,20.09494805,186.32,186.26,35.29494805]
[1730961774380,20.09494805,186.33,186.26,35.29494805]
[1730961774582,6.1028,186.38,186.26,35.29494805]
[1730961774583,20.09494805,186.32,186.26,15.2]
[1730961774975,20.09494805,186.32,186.26,35.29494805]
[1730961775488,20.09494805,186.34,186.28,20.09494805]
[1730961775958,20.09494805,186.34,186.27,20.09494805]
[1730961776160,20.09494805,186.33,186.26,35.29494805]
[1730961776360,20.09494805,186.34,186.27,20.09494805]
[1730961777182,19.59494805,186.34,186.27,20.09494805]
[1730961777580,20.09494805,186.31,186.26,15.2]
[1730961777776,20.09494805,186.34,186.27,20.09494805]
[1730961778378,20.09494805,186.34,186.28,20.09494805]
[1730961778582,5.54537856,186.36,186.3,20.09494805]
[1730961778881,5.54537856,186.36,186.26,30.6686]
[1730961778882,5.54537856,186.36,186.31,20.09494805]
[1730961779083,20.09494805,186.35,186.29,20.09494805]
[1730961779285,5.54537856,186.36,186.29,20.09494805]
[1730961779286,25.64032661,186.36,186.29,20.09494805]